fUSD/lending_fUSD_20240125
["ID","MTS","AMOUNT","RATE_DAILY","PERIOD"]
[312719860,1706188891952,-500.0,0.00050684,31]
[312719861,1706188891983,-500.0,0.00050684,31]
[312719862,1706188892015,-664.74,0.00050684,31]
[312719863,1706188892048,-500.0,0.00050684,31]
[312719864,1706188892082,-500.0,0.00050684,31]
[312719865,1706188892115,-552.93,0.00050684,31]
[312719866,1706188892145,-391.57489862,0.00050684,31]
[312719867,1706188892176,-500.0,0.00050684,31]
[312719868,1706188892209,-569.49,0.00050684,31]
[312719869,1706188892244,-538.01,0.00050684,31]
[312719870,1706188892276,-651.62,0.00050684,31]
[312719871,1706188892308,-567.83,0.00050684,31]
[312719872,1706188892339,-500.0,0.00050684,31]
[312719873,1706188892372,-3543.8,0.00050684,31]
[312719874,1706188892405,-500.0,0.00050684,31]
[312719875,1706188892437,-500.0,0.00050684,31]
[312719876,1706188892470,-500.0,0.00050684,31]
[312719877,1706188892502,-500.0,0.00050684,31]
[312719878,1706188892534,-500.0,0.00050684,31]
[312719879,1706188892567,-500.0,0.00050684,31]
[312719880,1706188892599,-500.0,0.00050684,31]
[312719881,1706188892632,-594.79,0.00050684,31]
[312719882,1706188892665,-500.0,0.00050684,31]
[312719883,1706188892698,-502.34,0.00050684,31]
[312719884,1706188892730,-611.77,0.00050684,31]
[312719885,1706188892763,-549.63,0.00050684,31]
[312719886,1706188892796,-500.0,0.00050684,31]
[312719887,1706188892976,-513.18,0.00050684,31]
[312719888,1706188893012,-591.91,0.00050684,31]
[312719889,1706188893047,-500.0,0.00050684,31]
[312719890,1706188893083,-500.0,0.00050684,31]
[312719891,1706188893129,-892.35,0.00050684,31]
[312719892,1706188893173,-565.29,0.00050684,31]
[312719893,1706188893210,-500.0,0.00050684,31]
[312719894,1706188893247,-500.0,0.00050684,31]
[312719895,1706188893284,-500.0,0.00050684,31]
[312719896,1706188893321,-500.0,0.00050684,31]
[312719897,1706188893355,-500.0,0.00050684,31]
[312719898,1706188893391,-696.05,0.00050684,31]
[312719899,1706188893425,-503.96,0.00050684,31]
[312719900,1706188893458,-500.0,0.00050684,31]
[312719901,1706188893496,-500.0,0.00050684,31]
[312719902,1706188893528,-511.78135503,0.00050684,31]
[312719903,1706188893561,-1045.18,0.00050684,31]
[312719904,1706188893595,-500.0,0.00050684,31]
[312719905,1706188893628,-500.0,0.00050684,31]
[312719906,1706188893661,-505.83,0.00050684,31]
[312719907,1706188893693,-8322.88,0.00050684,31]
[312719908,1706188893726,-500.0,0.00050684,31]
[312719909,1706188893758,-569.95,0.00050684,31]
[312719910,1706188893790,-616.19,0.00050684,31]
[312719911,1706188893822,-500.0,0.00050684,31]
[312719912,1706188893854,-500.0,0.00050684,31]
[312719913,1706188893886,-1085.14,0.00050684,31]
[312719914,1706188893924,-740.01,0.00050684,31]
[312719915,1706188893959,-500.0,0.00050684,31]
[312719916,1706188893993,-658.74,0.00050684,31]
[312719917,1706188894030,-728.72,0.00050684,31]
[312719918,1706188894065,-500.0,0.00050684,31]
[312719919,1706188894102,-500.0,0.00050684,31]
[312719920,1706188894136,-1240.04,0.00050684,31]
[312719921,1706188894170,-1773.53,0.00050684,31]
[312719922,1706188894204,-599.04,0.00050684,31]
[312719923,1706188894238,-808.35,0.00050684,31]
[312719924,1706188894271,-605.14,0.00050684,31]
[312719925,1706188894302,-500.0,0.00050684,31]
[312719926,1706188894334,-500.0,0.00050684,31]
[312719927,1706188894365,-880.58,0.00050684,31]
[312719928,1706188894394,-500.0,0.00050684,31]
[312719929,1706188894424,-903.12,0.00050684,31]
[312719930,1706188894456,-545.45,0.00050684,31]
[312719931,1706188894490,-500.0,0.00050684,31]
[312719932,1706188894521,-3577.61,0.00050684,31]
[312719933,1706188894553,-500.0,0.00050684,31]
[312719934,1706188894584,-685.58,0.00050684,31]
[312719935,1706188894615,-562.88,0.00050684,31]
[312719936,1706188894645,-952.48,0.00050684,31]
[312719937,1706188894679,-500.0,0.00050684,31]
[312719938,1706188894711,-500.0,0.00050684,31]
[312719939,1706188894741,-818.92,0.00050684,31]
[312719940,1706188894772,-567.03,0.00050684,31]
[312719941,1706188894802,-500.0,0.00050684,31]
[312719942,1706188894833,-702.34,0.00050684,31]
[312719943,1706188894865,-529.03,0.00050684,31]
[312719944,1706188894894,-500.0,0.00050684,31]
[312719945,1706188894925,-506.1,0.00050684,31]
[312719946,1706188894956,-682.14,0.00050684,31]
[312719947,1706188894986,-919.78,0.00050684,31]
[312719948,1706188895018,-500.0,0.00050684,31]
[312719949,1706188895052,-500.0,0.00050684,31]
[312719950,1706188895086,-500.0,0.00050684,31]
[312719951,1706188895120,-1207.59,0.00050684,31]
[312719952,1706188895153,-500.0,0.00050684,31]
[312719953,1706188895191,-575.64,0.00050684,31]
[312719954,1706188895227,-500.0,0.00050684,31]
[312719955,1706188895263,-500.0,0.00050684,31]
[312719956,1706188895299,-500.0,0.00050684,31]
[312719957,1706188895333,-1305.94,0.00050684,31]
[312719958,1706188895367,-945.14,0.00050684,31]
[312719959,1706188895400,-668.31,0.00050684,31]
[312719960,1706188895434,-500.0,0.00050684,31]
[312719961,1706188895469,-538.49,0.00050684,31]
[312719962,1706188895501,-919.42,0.00050684,31]
[312719963,1706188895536,-500.0,0.00050684,31]
[312719964,1706188895569,-621.93,0.00050684,31]
[312719965,1706188895604,-1198.03,0.00050684,31]
[312719966,1706188895638,-500.0,0.00050684,31]
[312719967,1706188895671,-791.89,0.00050684,31]
[312719968,1706188895706,-500.0,0.00050684,31]
[312719969,1706188895739,-1243.05,0.00050684,31]
[312719970,1706188895772,-500.0,0.00050684,31]
[312719971,1706188895804,-500.0,0.00050684,31]
[312719972,1706188895839,-500.0,0.00050684,31]
[312719973,1706188895874,-558.35,0.00050684,31]
[312719974,1706188895906,-500.0,0.00050684,31]
[312719975,1706188895939,-693.07728148,0.00050684,31]
[312719976,1706188895972,-500.0,0.00050684,31]
[312719977,1706188896004,-500.0,0.00050684,31]
[312719978,1706188896036,-517.3,0.00050684,31]
[312719979,1706188896070,-689.62,0.00050684,31]
[312719980,1706188896106,-500.0,0.00050684,31]
[312719981,1706188896138,-504.11,0.00050684,31]
[312719982,1706188896183,-720.97,0.00050684,31]
[312719983,1706188896222,-2344.2,0.00050684,31]
[312719984,1706188896255,-500.0,0.00050684,31]
[312719985,1706188896287,-691.44,0.00050684,31]
[312719986,1706188896320,-1094.16,0.00050684,31]
[312719987,1706188896354,-550.56,0.00050684,31]
[312719988,1706188896384,-500.0,0.00050684,31]
[312719989,1706188896414,-900.04,0.00050684,31]
[312719990,1706188896446,-518.45,0.00050684,31]
[312719991,1706188896478,-900.8,0.00050684,31]
[312719992,1706188896722,-500.76,0.00050684,31]
[312719993,1706188896755,-500.0,0.00050684,31]
[312719994,1706188896787,-521.94,0.00050684,31]
[312719995,1706188896820,-500.0,0.00050684,31]
[312719996,1706188896853,-500.0,0.00050684,31]
[312719997,1706188896888,-890.01,0.00050684,31]
[312719998,1706188896919,-634.63,0.00050684,31]
[312719999,1706188896948,-500.0,0.00050684,31]
[312720000,1706188896980,-500.0,0.00050684,31]
[312720001,1706188897010,-500.0,0.00050684,31]
[312720002,1706188897039,-500.0,0.00050684,31]
[312720003,1706188897071,-1000.0,0.00050684,30]
[312720004,1706188897105,-4298.96,0.00050684,31]
[312720005,1706188897139,-500.0,0.00050684,31]
[312720006,1706188897171,-500.0,0.00050684,31]
[312720007,1706188897201,-500.0,0.00050684,31]
[312720008,1706188897231,-500.0,0.00050684,31]
[312720009,1706188897261,-500.0,0.00050684,31]
[312720010,1706188897290,-196.7,0.00050684,31]
[312720011,1706188897320,-834.57,0.00050684,31]
[312720012,1706188897351,-462.06912922,0.00050684,31]
[312720013,1706188897380,-500.0,0.00050684,31]
[312720014,1706188897410,-500.0,0.00050684,31]
[312720015,1706188897440,-2659.22,0.00050684,31]
[312720016,1706188897471,-500.0,0.00050684,31]
[312720017,1706188897502,-325.14130781,0.00050684,31]
[312720018,1706188897533,-706.5,0.00050684,31]
[312720019,1706188897564,-502.47,0.00050684,31]
[312720020,1706188897594,-511.82,0.00050684,31]
[312720021,1706188897625,-500.0,0.00050684,31]
[312720022,1706188897655,-735.0,0.00050684,31]
[312720023,1706188897687,-500.0,0.00050684,31]
[312720024,1706188897725,-500.0,0.00050684,31]
[312720025,1706188897757,-650.71,0.00050684,31]
[312720026,1706188897789,-515.77,0.00050684,31]
[312720027,1706188897823,-500.0,0.00050684,31]
[312720028,1706188897858,-2609.6,0.00050684,31]
[312720029,1706188897890,-1043.27,0.00050684,31]
[312720030,1706188897922,-2040.87,0.00050684,31]
[312720031,1706188897953,-500.0,0.00050684,31]
[312720032,1706188897984,-626.01,0.00050684,31]
[312720033,1706188898015,-500.0,0.00050684,31]
[312720034,1706188898047,-500.0,0.00050684,31]
[312720035,1706188898079,-5158.0759,0.0005088,30]
[312720036,1706188898110,-10000.0,0.0005088,30]
[312720037,1706188898142,-150.0,0.0005088,30]
[312720038,1706188898174,-150.0,0.0005088,30]
[312720039,1706188898205,-150.0,0.0005088,30]
[312720040,1706188898237,-1224.41,0.00050958,31]
[312720041,1706188898270,-551.45,0.00050958,31]
[312720042,1706188898303,-500.0,0.00050958,31]
[312720043,1706188898336,-1626.34,0.00050958,31]
[312720044,1706188898366,-2576.58,0.00050958,31]
[312720045,1706188898396,-500.0,0.00050958,31]
[312720046,1706188898426,-500.0,0.00050958,31]
[312720047,1706188898459,-500.0,0.00050958,31]
[312720048,1706188898490,-500.0,0.00050958,31]
[312720049,1706188898521,-500.0,0.00050958,31]
[312720050,1706188898551,-500.0,0.00050958,31]
[312720051,1706188898582,-271.27107376,0.00050958,31]
[312720052,1706188898612,-500.0,0.00050958,31]
[312720053,1706188898643,-500.0,0.00050958,31]
[312720054,1706188898675,-687.4,0.00050958,31]
[312720055,1706188898705,-500.0,0.00050958,31]
[312720056,1706188898735,-500.0,0.00050958,31]
[312720057,1706188898767,-500.0,0.00050958,31]
[312720058,1706188898799,-500.0,0.00050958,31]
[312720059,1706188898831,-624.67,0.00050958,31]
[312720060,1706188898863,-500.0,0.00050958,31]
[312720061,1706188898894,-500.0,0.00050958,31]
[312720062,1706188898925,-500.0,0.00050958,31]
[312720063,1706188898960,-500.0,0.00050958,31]
[312720064,1706188898996,-500.0,0.00050958,31]
[312720065,1706188899034,-500.0,0.00050958,31]
[312720066,1706188899068,-500.0,0.00050958,31]
[312720067,1706188899104,-500.0,0.00050958,31]
[312720068,1706188899136,-500.0,0.00050958,31]
[312720069,1706188899165,-500.0,0.00050958,31]
[312720070,1706188899196,-170.22536093,0.00050958,31]
[312720071,1706188899228,-543.47,0.00050958,31]
[312720072,1706188899260,-500.0,0.00050958,31]
[312720073,1706188899290,-500.0,0.00050958,31]
[312720074,1706188899321,-500.0,0.00050958,31]
[312720075,1706188899352,-511.97,0.00050958,31]
[312720076,1706188899381,-500.0,0.00050958,31]
[312720077,1706188899410,-500.0,0.00050958,31]
[312720078,1706188899441,-500.0,0.00050958,31]
[312720079,1706188899475,-500.0,0.00050958,31]
[312720080,1706188899507,-500.0,0.00050958,31]
[312720081,1706188899538,-500.0,0.00050958,31]
[312720082,1706188899567,-500.0,0.00050958,31]
[312720083,1706188899595,-500.0,0.00050958,31]
[312720084,1706188899625,-500.0,0.00050958,31]
[312720085,1706188899656,-607.34837023,0.00050958,31]
[312720086,1706188899686,-500.0,0.00050958,31]
[312720087,1706188899715,-500.0,0.00050958,31]
[312720088,1706188899744,-500.0,0.00050958,31]
[312720089,1706188899772,-303.50636041,0.00050958,31]
[312720090,1706188899803,-500.0,0.00050958,31]
[312720091,1706188899834,-500.0,0.00050958,31]
[312720092,1706188899866,-500.0,0.00050958,31]
[312720093,1706188899898,-520.94,0.00050958,31]
[312720094,1706188899932,-674.26,0.00050958,31]
[312720095,1706188899964,-500.0,0.00050958,31]
[312720096,1706188900152,-500.0,0.00050958,31]
[312720097,1706188900184,-500.0,0.00050958,31]
[312720098,1706188900218,-500.0,0.00050958,31]
[312720099,1706188900251,-500.0,0.00050958,31]
[312720100,1706188900282,-500.0,0.00050958,31]
[312720101,1706188900311,-500.0,0.00050958,31]
[312720102,1706188900341,-500.0,0.00050958,31]
[312720103,1706188900371,-556.01638054,0.00050958,31]
[312720104,1706188900402,-500.0,0.00050958,31]
[312720105,1706188900433,-500.0,0.00050958,31]
[312720106,1706188900464,-500.0,0.00050958,31]
[312720107,1706188900495,-500.0,0.00050958,31]
[312720108,1706188900524,-500.0,0.00050958,31]
[312720109,1706188900554,-500.0,0.00050958,31]
[312720110,1706188900585,-500.0,0.00050958,31]
[312720111,1706188900615,-500.0,0.00050958,31]
[312720112,1706188900643,-500.0,0.00050958,31]
[312720113,1706188900673,-500.0,0.00050958,31]
[312720114,1706188900703,-500.0,0.00050958,31]
[312720115,1706188900733,-500.0,0.00050958,31]
[312720116,1706188900763,-500.0,0.00050958,31]
[312720117,1706188900792,-500.0,0.00050958,31]
[312720118,1706188900823,-622.82,0.00050958,31]
[312720119,1706188900854,-848.34,0.00050958,31]
[312720120,1706188900884,-500.0,0.00050958,31]
[312720121,1706188900912,-500.0,0.00050958,31]
[312720122,1706188900942,-500.0,0.00050958,31]
[312720123,1706188900973,-344.49926482,0.00050958,31]
[312720124,1706188901004,-381.17964642,0.00050958,31]
[312720125,1706188901034,-692.14,0.00050958,31]
[312720126,1706188901064,-500.0,0.00050958,31]
[312720127,1706188901094,-500.0,0.00050958,31]
[312720128,1706188901124,-500.0,0.00050958,31]
[312720129,1706188901153,-531.51,0.00050958,31]
[312720130,1706188901182,-723.91,0.00050958,31]
[312720131,1706188901212,-500.0,0.00050958,31]
[312720132,1706188901242,-500.0,0.00050958,31]
[312720133,1706188901273,-500.0,0.00050958,31]
[312720134,1706188901306,-500.0,0.00050958,31]
[312720135,1706188901338,-500.0,0.00050958,31]
[312720136,1706188901370,-500.0,0.00050958,31]
[312720137,1706188901400,-500.0,0.00050958,31]
[312720138,1706188901430,-500.0,0.00050958,31]
[312720139,1706188901460,-500.0,0.00050958,31]
[312720140,1706188901490,-500.0,0.00050958,31]
[312720141,1706188901520,-500.0,0.00050958,31]
[312720142,1706188901550,-500.0,0.00050958,31]
[312720143,1706188901580,-500.0,0.00050958,31]
[312720144,1706188901611,-500.0,0.00050958,31]
[312720145,1706188901643,-500.0,0.00050958,31]
[312720146,1706188901673,-500.0,0.00050958,31]
[312720147,1706188901702,-500.0,0.00050958,31]
[312720148,1706188901731,-500.0,0.00050958,31]
[312720149,1706188901761,-518.42,0.00050958,31]
[312720150,1706188901797,-500.0,0.00050958,31]
[312720151,1706188901826,-556.54,0.00050958,31]
[312720152,1706188901857,-500.0,0.00050958,31]
[312720153,1706188901887,-500.0,0.00050958,31]
[312720154,1706188901916,-500.0,0.00050958,31]
[312720155,1706188901946,-500.0,0.00050958,31]
[312720156,1706188901975,-250.0,0.00050958,31]
[312720157,1706188902004,-500.0,0.00050958,31]
[312720158,1706188902033,-500.0,0.00050958,31]
[312720159,1706188902063,-568.52,0.00050958,31]
[312720160,1706188902095,-653.44,0.00050958,31]
[312720161,1706188902124,-500.0,0.00050958,31]
[312720162,1706188902153,-500.0,0.00050958,31]
[312720163,1706188902183,-500.0,0.00050958,31]
[312720164,1706188902213,-500.0,0.00050958,31]
[312720165,1706188902243,-500.0,0.00050958,31]
[312720166,1706188902272,-500.0,0.00050958,31]
[312720167,1706188902300,-221.80191365,0.00050958,31]
[312720168,1706188902329,-500.0,0.00050958,31]
[312720169,1706188902359,-500.0,0.00050958,31]
[312720170,1706188902391,-628.96,0.00050958,31]
[312720171,1706188902422,-500.0,0.00050958,31]
[312720172,1706188902453,-523.72,0.00050958,31]
[312720173,1706188902485,-500.0,0.00050958,31]
[312720174,1706188902514,-500.0,0.00050958,31]
[312720175,1706188902543,-899.54,0.00050958,31]
[312720176,1706188902574,-500.0,0.00050958,31]
[312720177,1706188902606,-562.18135687,0.00050958,31]
[312720178,1706188902640,-500.0,0.00050958,31]
[312720179,1706188902673,-500.0,0.00050958,31]
[312720180,1706188902704,-500.0,0.00050958,31]
[312720181,1706188902735,-500.0,0.00050958,31]
[312720182,1706188902766,-405.41580872,0.00050958,31]
[312720183,1706188902795,-500.0,0.00050958,31]
[312720184,1706188902824,-500.0,0.00050958,31]
[312720185,1706188902854,-500.0,0.00050958,31]
[312720186,1706188902883,-500.0,0.00050958,31]
[312720187,1706188902913,-500.0,0.00050958,31]
[312720188,1706188902943,-500.0,0.00050958,31]
[312720189,1706188902972,-500.0,0.00050958,31]
[312720190,1706188903003,-528.11,0.00050958,31]
[312720191,1706188903033,-500.0,0.00050958,31]
[312720192,1706188903063,-500.0,0.00050958,31]
[312720193,1706188903093,-1037.12,0.00050958,31]
[312720194,1706188903123,-500.0,0.00050958,31]
[312720195,1706188903154,-500.0,0.00050958,31]
[312720196,1706188903183,-500.0,0.00050958,31]
[312720197,1706188903212,-500.0,0.00050958,30]
[312720198,1706188903241,-500.0,0.00050958,31]
[312720199,1706188903270,-500.0,0.00050958,31]
[312720200,1706188903447,-500.0,0.00050958,31]
[312720201,1706188903481,-500.0,0.00050958,31]
[312720202,1706188903512,-500.0,0.00050958,31]
[312720203,1706188903541,-500.0,0.00050958,31]
[312720204,1706188903572,-500.0,0.00050958,31]
[312720205,1706188903605,-500.0,0.00050958,31]
[312720206,1706188903635,-500.0,0.00050958,31]
[312720207,1706188903667,-500.0,0.00050958,31]
[312720208,1706188903698,-500.0,0.00050958,31]
[312720209,1706188903729,-500.0,0.00050958,31]
[312720210,1706188903759,-500.0,0.00050958,31]
[312720211,1706188903789,-500.0,0.00050958,31]
[312720212,1706188903819,-500.0,0.00050958,31]
[312720213,1706188903854,-500.0,0.00050958,31]
[312720214,1706188903886,-500.0,0.00050958,31]
[312720215,1706188903918,-500.0,0.00050958,31]
[312720216,1706188903949,-500.0,0.00050958,31]
[312720217,1706188903979,-500.0,0.00050958,31]
[312720218,1706188904008,-500.0,0.00050958,31]
[312720219,1706188904041,-500.0,0.00050958,31]
[312720220,1706188904072,-500.0,0.00050958,31]
[312720221,1706188904103,-500.0,0.00050958,31]
[312720222,1706188904135,-500.0,0.00050958,31]
[312720223,1706188904167,-500.0,0.00050958,31]
[312720224,1706188904197,-500.0,0.00050958,31]
[312720225,1706188904230,-500.0,0.00050958,31]
[312720226,1706188904261,-500.0,0.00050958,31]
[312720227,1706188904291,-500.0,0.00050958,31]
[312720228,1706188904321,-500.0,0.00050958,31]
[312720229,1706188904352,-533.46,0.00050958,31]
[312720230,1706188904382,-501.9,0.00050958,31]
[312720231,1706188904412,-1106.47,0.00050958,31]
[312720232,1706188904441,-500.0,0.00050958,31]
[312720233,1706188904472,-500.0,0.00050958,31]
[312720234,1706188904502,-500.0,0.00050958,31]
[312720235,1706188904531,-500.0,0.00050958,31]
[312720236,1706188904562,-500.0,0.00050958,31]
[312720237,1706188904593,-500.0,0.00050958,31]
[312720238,1706188904625,-500.0,0.00050958,31]
[312720239,1706188904659,-500.0,0.00050958,31]
[312720240,1706188904691,-500.0,0.00050958,31]
[312720241,1706188904726,-3932.94,0.00050958,30]
[312720242,1706188904758,-500.0,0.00050958,31]
[312720243,1706188904792,-553.31,0.00050958,31]
[312720244,1706188904826,-500.0,0.00050958,31]
[312720245,1706188904861,-500.0,0.00050958,31]
[312720246,1706188904895,-500.0,0.00050958,31]
[312720247,1706188904926,-1880.79,0.00050958,31]
[312720248,1706188904957,-582.46,0.00050958,31]
[312720249,1706188904991,-500.0,0.00050958,31]
[312720250,1706188905025,-500.0,0.00050958,31]
[312720251,1706188905058,-500.0,0.00050958,31]
[312720252,1706188905093,-500.0,0.00050958,31]
[312720253,1706188905127,-3956.45,0.00050958,31]
[312720254,1706188905161,-500.0,0.00050958,31]
[312720255,1706188905194,-500.0,0.00050958,31]
[312720256,1706188905226,-500.0,0.00050958,31]
[312720257,1706188905261,-500.0,0.00050958,31]
[312720258,1706188905294,-500.0,0.00050958,31]
[312720259,1706188905326,-500.0,0.00050958,31]
[312720260,1706188905359,-500.0,0.00050958,31]
[312720261,1706188905392,-500.0,0.00050958,31]
[312720262,1706188905427,-500.0,0.00050958,31]
[312720263,1706188905467,-500.0,0.00050958,31]
[312720264,1706188905507,-500.0,0.00050958,31]
[312720265,1706188905544,-678.41,0.00050958,31]
[312720266,1706188905581,-500.0,0.00050958,31]
[312720267,1706188905624,-500.0,0.00050958,31]
[312720268,1706188905662,-500.0,0.00050958,31]
[312720269,1706188905696,-500.0,0.00050958,31]
[312720270,1706188905729,-500.0,0.00050958,31]
[312720271,1706188905761,-500.0,0.00050958,31]
[312720272,1706188905795,-500.0,0.00050958,31]
[312720273,1706188905829,-500.0,0.00050958,31]
[312720274,1706188905863,-549.93,0.00050958,31]
[312720275,1706188905894,-500.0,0.00050958,31]
[312720276,1706188905925,-500.0,0.00050958,31]
[312720277,1706188905958,-679.41,0.00050958,31]
[312720278,1706188905991,-500.0,0.00050958,31]
[312720279,1706188906026,-509.93,0.00050958,31]
[312720280,1706188906061,-500.0,0.00050958,31]
[312720281,1706188906095,-500.0,0.00050958,31]
[312720282,1706188906129,-500.0,0.00050958,31]
[312720283,1706188906161,-500.0,0.00050958,31]
[312720284,1706188906193,-192.2,0.00050958,31]
[312720285,1706188906224,-500.0,0.00050958,31]
[312720286,1706188906256,-500.0,0.00050958,31]
[312720287,1706188906288,-500.0,0.00050958,31]
[312720288,1706188906320,-500.0,0.00050958,31]
[312720289,1706188906353,-500.0,0.00050958,31]
[312720290,1706188906388,-500.0,0.00050958,31]
[312720291,1706188906421,-1090.07,0.00050958,31]
[312720292,1706188906452,-500.0,0.00050958,31]
[312720293,1706188906483,-521.96,0.00050958,31]
[312720294,1706188906513,-684.55,0.00050958,31]
[312720295,1706188906544,-500.0,0.00050958,31]
[312720296,1706188906574,-500.0,0.00050958,31]
[312720297,1706188906605,-500.0,0.00050958,31]
[312720298,1706188906637,-500.0,0.00050958,31]
[312720299,1706188906669,-500.0,0.00050958,31]
[312720300,1706188906705,-557.35,0.00050958,31]
[312720301,1706188906737,-500.0,0.00050958,31]
[312720302,1706188906769,-500.0,0.00050958,31]
[312720303,1706188906802,-500.0,0.00050958,31]
[312720304,1706188906983,-500.0,0.00050958,31]
[312720305,1706188907018,-500.0,0.00050958,31]
[312720306,1706188907051,-753.41,0.00050958,31]
[312720307,1706188907087,-500.0,0.00050958,31]
[312720308,1706188907127,-500.0,0.00050958,31]
[312720309,1706188907162,-500.0,0.00050958,31]
[312720310,1706188907198,-500.0,0.00050958,31]
[312720311,1706188907235,-500.0,0.00050958,31]
[312720312,1706188907268,-761.84,0.00050958,31]
[312720313,1706188907301,-500.0,0.00050958,31]
[312720314,1706188907333,-507.48,0.00050958,31]
[312720315,1706188907365,-528.39192739,0.00050958,31]
[312720316,1706188907397,-500.0,0.00050958,31]
[312720317,1706188907429,-500.0,0.00050958,31]
[312720318,1706188907462,-500.0,0.00050958,31]
[312720319,1706188907496,-500.0,0.00050958,31]
[312720320,1706188907528,-500.0,0.00050958,31]
[312720321,1706188907563,-500.0,0.00050958,31]
[312720322,1706188907600,-1413.36,0.00050958,31]
[312720323,1706188907632,-1123.79,0.00050958,31]
[312720324,1706188907664,-500.0,0.00050958,31]
[312720325,1706188907697,-500.0,0.00050958,31]
[312720326,1706188907730,-500.0,0.00050958,31]
[312720327,1706188907762,-500.0,0.00050958,31]
[312720328,1706188907795,-2527.99,0.00050958,31]
[312720329,1706188907826,-500.0,0.00050958,31]
[312720330,1706188907862,-500.0,0.00050958,31]
[312720331,1706188907897,-2252.57,0.00050958,31]
[312720332,1706188907931,-500.0,0.00050958,31]
[312720333,1706188907966,-500.0,0.00050958,31]
[312720334,1706188908002,-4785.39,0.00050958,31]
[312720335,1706188908038,-681.67,0.00050958,31]
[312720336,1706188908071,-757.11,0.00050958,31]
[312720337,1706188908106,-500.0,0.00050958,31]
[312720338,1706188908141,-507.3783369,0.00050958,31]
[312720339,1706188908177,-500.0,0.00050958,31]
[312720340,1706188908210,-578.13,0.00050958,31]
[312720341,1706188908244,-500.0,0.00050958,31]
[312720342,1706188908278,-1195.74,0.00050958,31]
[312720343,1706188908313,-500.0,0.00050958,31]
[312720344,1706188908350,-646.08,0.00050958,31]
[312720345,1706188908383,-500.0,0.00050958,31]
[312720346,1706188908416,-500.0,0.00050958,31]
[312720347,1706188908448,-500.0,0.00050958,31]
[312720348,1706188908483,-668.94,0.00050958,31]
[312720349,1706188908517,-500.0,0.00050958,31]
[312720350,1706188908551,-211.5523773,0.00050958,31]
[312720351,1706188908584,-500.0,0.00050958,31]
[312720352,1706188908618,-500.0,0.00050958,31]
[312720353,1706188908650,-500.0,0.00050958,31]
[312720354,1706188908682,-500.0,0.00050958,31]
[312720355,1706188908715,-624.44,0.00050958,31]
[312720356,1706188908746,-500.0,0.00050958,31]
[312720357,1706188908777,-500.0,0.00050958,31]
[312720358,1706188908811,-500.0,0.00050958,31]
[312720359,1706188908846,-500.0,0.00050958,31]